Workbook

Sheet 報表 (hidden)
A1: 法務部矯正署苗栗看守所及其附設勒戒處所近五年收容人收容情形 | M1: D2英文版看守所附設勒戒在出所人數
A2: 年月別 | B2: 看 守 所 收 容 人 數 | G2: 看守所附設勒戒所人數 | M2: =B16+G16 -> 315 | N2: =C16+H16 -> 67 | O2: 248 | P2: 266 | Q2: 49
B3: 總計 | C3: 在所人數 上年︵月︶底 | D3: 新入所人數 | E3: 出所人數 | F3: 年︵月︶底在所 | G3: 總計 | H3: 在所人數 上年︵月︶底 | I3: 新入所人數 | J3: 出所人數 | K3: 年︵月︶底在所 | M3: 總計 | N3: 在所人數 上年︵月︶底 | O3: 新入所人數 | P3: 出所人數 | Q3: 年︵月︶底在所 | R3: 總計 | S3: 在所人數 上年︵月︶底 | T3: 新入所人數 | U3: 出所人數 | V3: 年︵月︶底在所
A5: 94年 | B5: =C5+D5 -> 868 | C5: 123 | D5: =39+57+66+73+89+77+61+76+56+73+46+32 -> 745 | E5: =42+60+55+50+69+64+69+86+58+66+80+71 -> 770 | F5: =B5-E5 -> 98 | G5: =H5+I5 -> 380 | H5: 35 | I5: =27+37+39+27+25+36+23+31+25+23+31+21 -> 345 | J5: =28+25+38+30+37+23+31+31+26+23+28+25 -> 345 | K5: =G5-J5 -> 35
A6: 96年 | B6: 886 | C6: 84 | D6: 802 | E6: 734 | F6: 152 | G6: 348 | H6: 36 | I6: 312 | J6: 304 | K6: 44 | M6: =B6+G6 -> 1234 | N6: =C6+H6 -> 120 | O6: =D6+I6 -> 1114 | P6: =E6+J6 -> 1038 | Q6: =F6+K6 -> 196
A7: 97年 | B7: =C7+D7 -> 730 | C7: 152 | D7: 578 | E7: 669 | F7: =B7-E7 -> 61 | G7: =H7+I7 -> 320 | H7: 44 | I7: 276 | J7: 298 | K7: =G7-J7 -> 22 | M7: =B7+G7 -> 1050 | N7: 196 | O7: 854 | P7: 967 | Q7: 83
A8: 98年 | B8: =C8+D8 -> 512 | C8: 61 | D8: 451 | E8: 448 | F8: =B8-E8 -> 64 | G8: =H8+I8 -> 228 | H8: 22 | I8: 206 | J8: 203 | K8: =G8-J8 -> 25 | M8: 740 | N8: 83 | O8: 657 | P8: 651 | Q8: 89
A9: 99年 | B9: =C9+D9 -> 491 | C9: 64 | D9: 427 | E9: 404 | F9: =B9-E9 -> 87 | G9: =H9+I9 -> 290 | H9: 25 | I9: 265 | J9: 241 | K9: =G9-J9 -> 49 | M9: 781 | N9: 89 | O9: 692 | P9: 645 | Q9: 136
A10: 100年 | B10: =C10+D10 -> 494 | C10: 87 | D10: 407 | E10: 431 | F10: =B10-E10 -> 63 | G10: =H10+I10 -> 238 | H10: 49 | I10: 189 | J10: 237 | K10: 1 | M10: 732 | N10: 136 | O10: 596 | P10: 668 | Q10: 64
A11: 101年 | B11: 440 | C11: 63 | D11: 377 | E11: 364 | F11: 76 | G11: 78 | H11: 1 | I11: 77 | J11: 77 | K11: 1 | M11: 518 | N11: 64 | O11: 454 | P11: 441 | Q11: 77
A12: 102年 | B12: 383 | C12: 76 | D12: 307 | E12: 333 | F12: 50 | G12: 56 | H12: 1 | I12: 55 | J12: 56 | K12: 0 | M12: 439 | N12: 77 | O12: 362 | P12: 389 | Q12: 50
A13: 103年 | B13: 366 | C13: 50 | D13: 316 | E13: 316 | F13: 50 | G13: 76 | H13: 0 | I13: 76 | J13: 75 | K13: 1 | M13: 442 | N13: 50 | O13: 392 | P13: 391 | Q13: 51
A14: 104年 | B14: 253 | C14: 50 | D14: 203 | E14: 215 | F14: 38 | G14: 68 | H14: 1 | I14: 67 | J14: 68 | K14: 0 | M14: 321 | N14: 51 | O14: 270 | P14: 283 | Q14: 38
A15: 105年 | B15: 307 | C15: 38 | D15: 269 | E15: 240 | F15: 67 | G15: 90 | H15: 0 | I15: 90 | J15: 90 | K15: 0
A16: 106年1-8月 | B16: 250 | C16: 67 | D16: 183 | E16: 203 | F16: 47 | G16: 65 | H16: 0 | I16: 65 | J16: 63 | K16: 2 | M16: 315 | N16: 67 | O16: 248 | P16: 266 | Q16: 49
A17: 說明：1.看守所收容人數包含被告、留置流氓及民事應管收人。 | M17: =N17+O17 -> 203 | N17: =N18 -> 67 | O17: =O18+O19 -> 136 | P17: =P18+P19 -> 155 | Q17: =N17+O17-P17 -> 48 | R17: =S17+T17 -> 43 | S17: =S18 -> 0 | T17: =T18+T19 -> 43 | U17: =U18+U19 -> 42 | V17: =S17+T17-U17 -> 1 | W17: 3.將橘色區塊->貼回左方正式表
A18: 2.看守所附設勒戒所人數包含成年受觀察勒戒人及受戒治人。 | L18: 上累 | M18: 175 | N18: 67 | O18: 108 | P18: 124 | Q18: 51 | R18: 32 | S18: 0 | T18: 32 | U18: 32 | V18: 0 | W18: 1.將左方正式表->貼值在"上累"
A19: 2.依據苗栗看守所1724-01-21-05報表、看守所附設勒戒所1724-01-71-11報表編製。 | L19: 本月 | M19: =N19+O19 -> 79 | N19: 51 | O19: 28 | P19: 31 | Q19: =N19+O19-P19 -> 48 | R19: =S19+T19 -> 11 | S19: 0 | T19: 11 | U19: 10 | V19: =S19+T19-U19 -> 1 | W19: 2.key綠色部分
L21: 英文~2 | N21: =N19+S19 -> 51 | O21: =O19+T19 -> 39 | P21: =P19+U19 -> 41 | Q21: =Q19+V19 -> 49

Sheet CH
A1: 法務部矯正署苗栗看守所及其附設勒戒處所近五年收容人收容情形 | N1: D2英文版看守所附設勒戒在出所人數
A2: 年月別 | B2: 看 守 所 收 容 人 數 | G2: 看守所附設勒戒所人數 | N2: =B22+G22 -> 179 | O2: =C22+H22 -> 87 | P2: 92 | Q2: 89 | R2: 90
B3: 總計 | C3: 在所人數 上年︵月︶底 | D3: 新入所人數 | E3: 出所人數 | F3: 年︵月︶底在所 | G3: 總計 | H3: 在所人數 上年︵月︶底 | I3: 新入所人數 | J3: 出所人數 | K3: 年︵月︶底在所
A5: 94年 | B5: =C5+D5 -> 868 | C5: 123 | D5: =39+57+66+73+89+77+61+76+56+73+46+32 -> 745 | E5: =42+60+55+50+69+64+69+86+58+66+80+71 -> 770 | F5: =B5-E5 -> 98 | G5: =H5+I5 -> 380 | H5: 35 | I5: =27+37+39+27+25+36+23+31+25+23+31+21 -> 345 | J5: =28+25+38+30+37+23+31+31+26+23+28+25 -> 345 | K5: =G5-J5 -> 35
A6: 96年 | B6: 886 | C6: 84 | D6: 802 | E6: 734 | F6: 152 | G6: 348 | H6: 36 | I6: 312 | J6: 304 | K6: 44
A7: 97年 | B7: =C7+D7 -> 730 | C7: 152 | D7: 578 | E7: 669 | F7: =B7-E7 -> 61 | G7: =H7+I7 -> 320 | H7: 44 | I7: 276 | J7: 298 | K7: =G7-J7 -> 22
A8: 98年 | B8: =C8+D8 -> 512 | C8: 61 | D8: 451 | E8: 448 | F8: =B8-E8 -> 64 | G8: =H8+I8 -> 228 | H8: 22 | I8: 206 | J8: 203 | K8: =G8-J8 -> 25
A9: 99年 | B9: =C9+D9 -> 491 | C9: 64 | D9: 427 | E9: 404 | F9: =B9-E9 -> 87 | G9: =H9+I9 -> 290 | H9: 25 | I9: 265 | J9: 241 | K9: =G9-J9 -> 49
A10: 100年 | B10: =C10+D10 -> 494 | C10: 87 | D10: 407 | E10: 431 | F10: =B10-E10 -> 63 | G10: =H10+I10 -> 238 | H10: 49 | I10: 189 | J10: 237 | K10: 1
A11: 101年 | B11: 440 | C11: 63 | D11: 377 | E11: 364 | F11: 76 | G11: 78 | H11: 1 | I11: 77 | J11: 77 | K11: 1
A12: 102年 | B12: 383 | C12: 76 | D12: 307 | E12: 333 | F12: 50 | G12: 56 | H12: 1 | I12: 55 | J12: 56 | K12: 0
A13: 103年 | B13: 366 | C13: 50 | D13: 316 | E13: 316 | F13: 50 | G13: 76 | H13: 0 | I13: 76 | J13: 75 | K13: 1
A14: 104年 | B14: 253 | C14: 50 | D14: 203 | E14: 215 | F14: 38 | G14: 68 | H14: 1 | I14: 67 | J14: 68 | K14: 0
A15: 108年 | B15: 287 | C15: 82 | D15: 205 | E15: 270 | F15: 17 | G15: 60 | H15: 0 | I15: 60 | J15: 60 | K15: 0
A16: 109年 | B16: 193 | C16: 17 | D16: 176 | E16: 146 | F16: 47 | G16: 57 | H16: 0 | I16: 57 | J16: 55 | K16: 2
A17: 110年 | B17: 314 | C17: 47 | D17: 267 | E17: 253 | F17: 61 | G17: 683 | H17: 2 | I17: 681 | J17: 592 | K17: 91
A18: 111年 | B18: 295 | C18: 61 | D18: 234 | E18: 259 | F18: 36 | G18: 1077 | H18: 91 | I18: 986 | J18: 1040 | K18: 37
A19: 112年 | B19: 304 | C19: 36 | D19: 268 | E19: 251 | F19: 53 | G19: 371 | H19: 37 | I19: 334 | J19: 333 | K19: 38
A20: 113年 | B20: 398 | C20: 53 | D20: 345 | E20: 302 | F20: 96 | G20: 242 | H20: 38 | I20: 204 | J20: 242 | K20: 0
A21: 114年 | B21: 530 | C21: 96 | D21: 434 | E21: 443 | F21: 87 | G21: 61 | H21: 0 | I21: 61 | J21: 61 | K21: 0
A22: 115年1月至2月 | B22: =SUM(C22:D22) -> 162 | C22: 87 | D22: =D31 -> 75 | E22: =E31 -> 73 | F22: =F31 -> 89 | G22: =SUM(H22:I22) -> 17 | H22: 0 | I22: =I31 -> 17 | J22: =J31 -> 16 | K22: =K31 -> 1
A23: 說明：1.看守所收容人數包含被告、留置流氓及民事應管收人。
A24: 2.看守所附設勒戒所人數包含成年受觀察勒戒人及受戒治人。
A25: 3.107年4月前依據苗栗看守所1724-01-21-05報表、看守所附設勒戒所1724-01-71-11報表編製。
A26: 4.107年5月起依據苗栗看守所10931-02-201報表、看守所附設勒戒所10931-02-701報表編製。
D31: ='10931-01-206'!D10 -> 75 | E31: ='10931-01-206'!D13 -> 73 | F31: =月底在監!D11 -> 89 | I31: ='10931-01-706'!D10 -> 17 | J31: ='10931-01-706'!D13 -> 16 | K31: =月底在監!F11 -> 1 | M31: 總年度月底在所人數欄位要修改

Sheet EN
A1: Maoli Detention Center, Agency of Corrections, Ministry of Justice Number of Inmates of Detention Center over Past Five Years
K2: Unit: Persons
A3: Year(Month) | B3: Detention Center (only) | G3: Rehabilitation Center (attached to Detention Center)
B4: Total | C4: At the end of the prior Year (Month) | D4: New Entrants | E4: Out of Detention Center | F4: At the end of the Year (Month) | G4: Total | H4: At the end of the prior Year (Month) | I4: New Entrants | J4: Out of Detention Center | K4: At the end of the Year (Month)
A6: 94年 | B6: =C6+D6 -> 868 | C6: 123 | D6: =39+57+66+73+89+77+61+76+56+73+46+32 -> 745 | E6: =42+60+55+50+69+64+69+86+58+66+80+71 -> 770 | F6: =B6-E6 -> 98 | G6: =H6+I6 -> 380 | H6: 35 | I6: =27+37+39+27+25+36+23+31+25+23+31+21 -> 345 | J6: =28+25+38+30+37+23+31+31+26+23+28+25 -> 345 | K6: =G6-J6 -> 35
A7: 96年 | B7: 886 | C7: 84 | D7: 802 | E7: 734 | F7: 152 | G7: 348 | H7: 36 | I7: 312 | J7: 304 | K7: 44
A8: 97年 | B8: =C8+D8 -> 730 | C8: 152 | D8: 578 | E8: 669 | F8: =B8-E8 -> 61 | G8: =H8+I8 -> 320 | H8: 44 | I8: 276 | J8: 298 | K8: =G8-J8 -> 22
A9: 98年 | B9: =C9+D9 -> 512 | C9: 61 | D9: 451 | E9: 448 | F9: =B9-E9 -> 64 | G9: =H9+I9 -> 228 | H9: 22 | I9: 206 | J9: 203 | K9: =G9-J9 -> 25
A10: 99年 | B10: =C10+D10 -> 491 | C10: 64 | D10: 427 | E10: 404 | F10: =B10-E10 -> 87 | G10: =H10+I10 -> 290 | H10: 25 | I10: 265 | J10: 241 | K10: =G10-J10 -> 49
A11: 100年 | B11: =C11+D11 -> 494 | C11: 87 | D11: 407 | E11: 431 | F11: =B11-E11 -> 63 | G11: =H11+I11 -> 238 | H11: 49 | I11: 189 | J11: 237 | K11: 1
A12: 101年 | B12: 440 | C12: 63 | D12: 377 | E12: 364 | F12: 76 | G12: 78 | H12: 1 | I12: 77 | J12: 77 | K12: 1
A13: 102年 | B13: 383 | C13: 76 | D13: 307 | E13: 333 | F13: 50 | G13: 56 | H13: 1 | I13: 55 | J13: 56 | K13: 0
A14: 2014 | B14: =CH!B13 -> 366 | C14: =CH!C13 -> 50 | D14: =CH!D13 -> 316 | E14: =CH!E13 -> 316 | F14: =CH!F13 -> 50 | G14: =CH!G13 -> 76 | H14: =CH!H13 -> 0 | I14: =CH!I13 -> 76 | J14: =CH!J13 -> 75 | K14: =CH!K13 -> 1
A15: 2015 | B15: =CH!B14 -> 253 | C15: =CH!C14 -> 50 | D15: =CH!D14 -> 203 | E15: =CH!E14 -> 215 | F15: =CH!F14 -> 38 | G15: =CH!G14 -> 68 | H15: =CH!H14 -> 1 | I15: =CH!I14 -> 67 | J15: =CH!J14 -> 68 | K15: =CH!K14 -> 0
A16: 2019 | B16: 287 | C16: 82 | D16: 205 | E16: 270 | F16: 17 | G16: 60 | H16: 0 | I16: 60 | J16: 60 | K16: 0
A17: 2020 | B17: 193 | C17: 17 | D17: 176 | E17: 146 | F17: 47 | G17: 57 | H17: 0 | I17: 57 | J17: 55 | K17: 2
A18: 2021 | B18: 314 | C18: 47 | D18: 267 | E18: 253 | F18: 61 | G18: 683 | H18: 2 | I18: 681 | J18: 592 | K18: 91
A19: 2022 | B19: 295 | C19: 61 | D19: 234 | E19: 259 | F19: 36 | G19: 1077 | H19: 91 | I19: 986 | J19: 1040 | K19: 37
A20: 2023 | B20: 304 | C20: 36 | D20: 268 | E20: 251 | F20: 53 | G20: 371 | H20: 37 | I20: 334 | J20: 333 | K20: 38
A21: 2024 | B21: 398 | C21: 53 | D21: 345 | E21: 302 | F21: 96 | G21: 242 | H21: 38 | I21: 204 | J21: 242 | K21: 0
A22: 2025 | B22: 530 | C22: 96 | D22: 434 | E22: 443 | F22: 87 | G22: 61 | H22: 0 | I22: 61 | J22: 61 | K22: 0
A23: Jan-Feb-2026 | B23: =CH!B22 -> 162 | C23: 87 | D23: =CH!D22 -> 75 | E23: =CH!E22 -> 73 | F23: =CH!F22 -> 89 | G23: =CH!G22 -> 17 | H23: =CH!H22 -> 0 | I23: =CH!I22 -> 17 | J23: =CH!J22 -> 16 | K23: =CH!K22 -> 1
A24: 1. The number of inmates of detention center includes defendants, hooligan under custody, and Inmates, people
A25: under custody.
A26: 2. The number of inmates of rehabilitation center includes people under observation and people receiving
A27: rehabilitation(detoxification).

Sheet 月底在監
A2: 法務部矯正署苗栗看守所每日在監(所)各類收容人數
C3: 115年2月28日
F4: 單位：人
A5: 性 別 | B5: 總計 | C5: 受刑人 | D5: 被管收人 被告及 | E5: 收容少年 | F5: 成年受觀察勒戒人
I6: =(B11-667)/667 -> 0.1109445277
A11: 總計 | B11: =SUM(B12:B13) -> 741 | C11: 643 | D11: 89 | E11: 8 | F11: 1
A12: 男 | B12: =SUM(C12:F12) -> 655 | C12: 572 | D12: 76 | E12: 6 | F12: 1
A13: 女 | B13: =SUM(C13:F13) -> 86 | C13: 71 | D13: 13 | E13: 2 | F13: 0

Sheet 10931-01-206
A1: 法務部矯正署苗栗看守所被告每日入、出及在所人數(含被管收人) | B1: 公 開 類 | C1: 月 報 | D1: 月報次月10日、年報次年1月15日前編製 | E1: 苗栗看守所 | F1: 10931-01-206 | G1: 中華民國115年 1月至 2月
A2: 各看守所依被告之刑案及身分資料查編，統計資料透過獄政管理系統傳送至法務部獄政主機資料庫，由法務部矯正署統計室查核並彙總編製。 | B2: 1.本表各看守所查編製1式2份，1份送法務部矯正署，1份自存。 2.本表法務部矯正署統計室彙編製1式2份，1份送法務部統計處，1份自存。 | C2: 民國115年 3月 4日 | H2: ="中華"&C2&"編製" -> 中華民國115年 3月 4日編製
A3: =B1 -> 公 開 類 | AE3: 編製機關 | AG3: =E1 -> 苗栗看守所
A4: 月 (年) 報 | B4: =D1 -> 月報次月10日、年報次年1月15日前編製 | AE4: 表 號 | AG4: =F1 -> 10931-01-206
A5: =A1 -> 法務部矯正署苗栗看守所被告每日入、出及在所人數(含被管收人)
A6: =G1 -> 中華民國115年 1月至 2月
AJ7: 單位：人、人次、人/日
A8: 類別 | D8: 總計 | F8: 一日 | G8: 二日 | H8: 三日 | I8: 四日 | J8: 五日 | K8: 六日 | L8: 七日 | M8: 八日 | N8: 九日 | O8: 十日 | P8: 十一日 | Q8: 十二日 | R8: 十三日 | S8: 十四日 | T8: 十五日 | U8: 十六日 | V8: 十七日 | W8: 十八日 | X8: 十九日 | Y8: 二十日 | Z8: 二十一日 | AA8: 二十二日 | AB8: 二十三日 | AC8: 二十四日 | AD8: 二十五日 | AE8: 二十六日 | AF8: 二十七日 | AG8: 二十八日 | AH8: 二十九日 | AI8: 三十日 | AJ8: 三十一日
D9: 總人次 | E9: 日平均
A10: 入所人數 | C10: 計 | D10: 75 | E10: 1.27 | F10: 0 | G10: 0 | H10: 0 | I10: 0 | J10: 0 | K10: 0 | L10: 0 | M10: 0 | N10: 0 | O10: 0 | P10: 0 | Q10: 0 | R10: 0 | S10: 0 | T10: 0 | U10: 0 | V10: 0 | W10: 0 | X10: 0 | Y10: 0 | Z10: 0 | AA10: 0 | AB10: 0 | AC10: 0 | AD10: 0 | AE10: 0 | AF10: 0 | AG10: 0 | AH10: 0 | AI10: 0 | AJ10: 0
C11: 男 | D11: 61 | E11: 1.03 | F11: 0 | G11: 0 | H11: 0 | I11: 0 | J11: 0 | K11: 0 | L11: 0 | M11: 0 | N11: 0 | O11: 0 | P11: 0 | Q11: 0 | R11: 0 | S11: 0 | T11: 0 | U11: 0 | V11: 0 | W11: 0 | X11: 0 | Y11: 0 | Z11: 0 | AA11: 0 | AB11: 0 | AC11: 0 | AD11: 0 | AE11: 0 | AF11: 0 | AG11: 0 | AH11: 0 | AI11: 0 | AJ11: 0
C12: 女 | D12: 14 | E12: 0.24 | F12: 0 | G12: 0 | H12: 0 | I12: 0 | J12: 0 | K12: 0 | L12: 0 | M12: 0 | N12: 0 | O12: 0 | P12: 0 | Q12: 0 | R12: 0 | S12: 0 | T12: 0 | U12: 0 | V12: 0 | W12: 0 | X12: 0 | Y12: 0 | Z12: 0 | AA12: 0 | AB12: 0 | AC12: 0 | AD12: 0 | AE12: 0 | AF12: 0 | AG12: 0 | AH12: 0 | AI12: 0 | AJ12: 0
A13: 出所人數 | C13: 計 | D13: 73 | E13: 1.24 | F13: 0 | G13: 0 | H13: 0 | I13: 0 | J13: 0 | K13: 0 | L13: 0 | M13: 0 | N13: 0 | O13: 0 | P13: 0 | Q13: 0 | R13: 0 | S13: 0 | T13: 0 | U13: 0 | V13: 0 | W13: 0 | X13: 0 | Y13: 0 | Z13: 0 | AA13: 0 | AB13: 0 | AC13: 0 | AD13: 0 | AE13: 0 | AF13: 0 | AG13: 0 | AH13: 0 | AI13: 0 | AJ13: 0
C14: 男 | D14: 63 | E14: 1.07 | F14: 0 | G14: 0 | H14: 0 | I14: 0 | J14: 0 | K14: 0 | L14: 0 | M14: 0 | N14: 0 | O14: 0 | P14: 0 | Q14: 0 | R14: 0 | S14: 0 | T14: 0 | U14: 0 | V14: 0 | W14: 0 | X14: 0 | Y14: 0 | Z14: 0 | AA14: 0 | AB14: 0 | AC14: 0 | AD14: 0 | AE14: 0 | AF14: 0 | AG14: 0 | AH14: 0 | AI14: 0 | AJ14: 0
C15: 女 | D15: 10 | E15: 0.17 | F15: 0 | G15: 0 | H15: 0 | I15: 0 | J15: 0 | K15: 0 | L15: 0 | M15: 0 | N15: 0 | O15: 0 | P15: 0 | Q15: 0 | R15: 0 | S15: 0 | T15: 0 | U15: 0 | V15: 0 | W15: 0 | X15: 0 | Y15: 0 | Z15: 0 | AA15: 0 | AB15: 0 | AC15: 0 | AD15: 0 | AE15: 0 | AF15: 0 | AG15: 0 | AH15: 0 | AI15: 0 | AJ15: 0
A16: 留所人數 | C16: 計 | D16: 5585 | E16: 94.66 | F16: 0 | G16: 0 | H16: 0 | I16: 0 | J16: 0 | K16: 0 | L16: 0 | M16: 0 | N16: 0 | O16: 0 | P16: 0 | Q16: 0 | R16: 0 | S16: 0 | T16: 0 | U16: 0 | V16: 0 | W16: 0 | X16: 0 | Y16: 0 | Z16: 0 | AA16: 0 | AB16: 0 | AC16: 0 | AD16: 0 | AE16: 0 | AF16: 0 | AG16: 0 | AH16: 0 | AI16: 0 | AJ16: 0
C17: 男 | D17: 4746 | E17: 80.44 | F17: 0 | G17: 0 | H17: 0 | I17: 0 | J17: 0 | K17: 0 | L17: 0 | M17: 0 | N17: 0 | O17: 0 | P17: 0 | Q17: 0 | R17: 0 | S17: 0 | T17: 0 | U17: 0 | V17: 0 | W17: 0 | X17: 0 | Y17: 0 | Z17: 0 | AA17: 0 | AB17: 0 | AC17: 0 | AD17: 0 | AE17: 0 | AF17: 0 | AG17: 0 | AH17: 0 | AI17: 0 | AJ17: 0
C18: 女 | D18: 839 | E18: 14.22 | F18: 0 | G18: 0 | H18: 0 | I18: 0 | J18: 0 | K18: 0 | L18: 0 | M18: 0 | N18: 0 | O18: 0 | P18: 0 | Q18: 0 | R18: 0 | S18: 0 | T18: 0 | U18: 0 | V18: 0 | W18: 0 | X18: 0 | Y18: 0 | Z18: 0 | AA18: 0 | AB18: 0 | AC18: 0 | AD18: 0 | AE18: 0 | AF18: 0 | AG18: 0 | AH18: 0 | AI18: 0 | AJ18: 0
A21: =IF(LEN(A2)>0,"資料來源 : "&A2," ") -> 資料來源 : 各看守所依被告之刑案及身分資料查編，統計資料透過獄政管理系統傳送至法務部獄政主機資料庫，由法務部矯正署統計室查核並彙總編製。
A22: =IF(LEN(B2)>0,SUBSTITUTE("填表說明："&B2,CHAR(10),CHAR(10)&" ")," ") -> 填表說明：1.本表各看守所查編製1式2份，1份送法務部矯正署，1份自存。 2.本表法務部矯正署統計室彙編製1式2份，1份送法務部統計處，1份自存。

Sheet 10931-01-706
A1: 法務部矯正署苗栗看守所附設勒戒所成年受觀察勒戒人每日出入及在所人數 | B1: 公 開 類 | C1: 月 報 | D1: 月報次月10日、年報次年1月15日前編製 | E1: 苗栗看守所附設勒戒所 | F1: 10931-01-706 | G1: 中華民國115年 1月至 2月
A2: 各戒治(看守)所附設勒戒處所依成年受觀察勒戒人之刑案及身分資料查編，統計資料透過獄政管理系統傳送至法務部獄政主機資料庫，由法務部矯正署統計室查核並彙總編製。 | B2: 1.本表各戒治(看守)所附設勒戒處所查編製1式2份，1份送法務部矯正署，1份自存。 2.本表法務部矯正署統計室彙編製1式2份，1份送法務部統計處，1份自存。 | C2: 民國115年 3月 3日 | H2: ="中華"&C2&"編製" -> 中華民國115年 3月 3日編製
A3: =B1 -> 公 開 類 | AE3: 編製機關 | AG3: =E1 -> 苗栗看守所附設勒戒所
A4: 月 (年) 報 | B4: =D1 -> 月報次月10日、年報次年1月15日前編製 | AE4: 表 號 | AG4: =F1 -> 10931-01-706
A5: =A1 -> 法務部矯正署苗栗看守所附設勒戒所成年受觀察勒戒人每日出入及在所人數
A6: =G1 -> 中華民國115年 1月至 2月
AJ7: 單位：人、人次、人/日
A8: 類別 | D8: 總計 | F8: 一日 | G8: 二日 | H8: 三日 | I8: 四日 | J8: 五日 | K8: 六日 | L8: 七日 | M8: 八日 | N8: 九日 | O8: 十日 | P8: 十一日 | Q8: 十二日 | R8: 十三日 | S8: 十四日 | T8: 十五日 | U8: 十六日 | V8: 十七日 | W8: 十八日 | X8: 十九日 | Y8: 二十日 | Z8: 二十一日 | AA8: 二十二日 | AB8: 二十三日 | AC8: 二十四日 | AD8: 二十五日 | AE8: 二十六日 | AF8: 二十七日 | AG8: 二十八日 | AH8: 二十九日 | AI8: 三十日 | AJ8: 三十一日
D9: 總人次 | E9: 日平均
A10: 入所人數 | C10: 計 | D10: 17 | E10: 0.29 | F10: 0 | G10: 0 | H10: 0 | I10: 0 | J10: 0 | K10: 0 | L10: 0 | M10: 0 | N10: 0 | O10: 0 | P10: 0 | Q10: 0 | R10: 0 | S10: 0 | T10: 0 | U10: 0 | V10: 0 | W10: 0 | X10: 0 | Y10: 0 | Z10: 0 | AA10: 0 | AB10: 0 | AC10: 0 | AD10: 0 | AE10: 0 | AF10: 0 | AG10: 0 | AH10: 0 | AI10: 0 | AJ10: 0
C11: 男 | D11: 15 | E11: 0.25 | F11: 0 | G11: 0 | H11: 0 | I11: 0 | J11: 0 | K11: 0 | L11: 0 | M11: 0 | N11: 0 | O11: 0 | P11: 0 | Q11: 0 | R11: 0 | S11: 0 | T11: 0 | U11: 0 | V11: 0 | W11: 0 | X11: 0 | Y11: 0 | Z11: 0 | AA11: 0 | AB11: 0 | AC11: 0 | AD11: 0 | AE11: 0 | AF11: 0 | AG11: 0 | AH11: 0 | AI11: 0 | AJ11: 0
C12: 女 | D12: 2 | E12: 0.03 | F12: 0 | G12: 0 | H12: 0 | I12: 0 | J12: 0 | K12: 0 | L12: 0 | M12: 0 | N12: 0 | O12: 0 | P12: 0 | Q12: 0 | R12: 0 | S12: 0 | T12: 0 | U12: 0 | V12: 0 | W12: 0 | X12: 0 | Y12: 0 | Z12: 0 | AA12: 0 | AB12: 0 | AC12: 0 | AD12: 0 | AE12: 0 | AF12: 0 | AG12: 0 | AH12: 0 | AI12: 0 | AJ12: 0
A13: 出所人數 | C13: 計 | D13: 16 | E13: 0.27 | F13: 0 | G13: 0 | H13: 0 | I13: 0 | J13: 0 | K13: 0 | L13: 0 | M13: 0 | N13: 0 | O13: 0 | P13: 0 | Q13: 0 | R13: 0 | S13: 0 | T13: 0 | U13: 0 | V13: 0 | W13: 0 | X13: 0 | Y13: 0 | Z13: 0 | AA13: 0 | AB13: 0 | AC13: 0 | AD13: 0 | AE13: 0 | AF13: 0 | AG13: 0 | AH13: 0 | AI13: 0 | AJ13: 0
C14: 男 | D14: 14 | E14: 0.24 | F14: 0 | G14: 0 | H14: 0 | I14: 0 | J14: 0 | K14: 0 | L14: 0 | M14: 0 | N14: 0 | O14: 0 | P14: 0 | Q14: 0 | R14: 0 | S14: 0 | T14: 0 | U14: 0 | V14: 0 | W14: 0 | X14: 0 | Y14: 0 | Z14: 0 | AA14: 0 | AB14: 0 | AC14: 0 | AD14: 0 | AE14: 0 | AF14: 0 | AG14: 0 | AH14: 0 | AI14: 0 | AJ14: 0
C15: 女 | D15: 2 | E15: 0.03 | F15: 0 | G15: 0 | H15: 0 | I15: 0 | J15: 0 | K15: 0 | L15: 0 | M15: 0 | N15: 0 | O15: 0 | P15: 0 | Q15: 0 | R15: 0 | S15: 0 | T15: 0 | U15: 0 | V15: 0 | W15: 0 | X15: 0 | Y15: 0 | Z15: 0 | AA15: 0 | AB15: 0 | AC15: 0 | AD15: 0 | AE15: 0 | AF15: 0 | AG15: 0 | AH15: 0 | AI15: 0 | AJ15: 0
A16: 在所人數 | C16: 計 | D16: 74 | E16: 1.25 | F16: 0 | G16: 0 | H16: 0 | I16: 0 | J16: 0 | K16: 0 | L16: 0 | M16: 0 | N16: 0 | O16: 0 | P16: 0 | Q16: 0 | R16: 0 | S16: 0 | T16: 0 | U16: 0 | V16: 0 | W16: 0 | X16: 0 | Y16: 0 | Z16: 0 | AA16: 0 | AB16: 0 | AC16: 0 | AD16: 0 | AE16: 0 | AF16: 0 | AG16: 0 | AH16: 0 | AI16: 0 | AJ16: 0
C17: 男 | D17: 66 | E17: 1.12 | F17: 0 | G17: 0 | H17: 0 | I17: 0 | J17: 0 | K17: 0 | L17: 0 | M17: 0 | N17: 0 | O17: 0 | P17: 0 | Q17: 0 | R17: 0 | S17: 0 | T17: 0 | U17: 0 | V17: 0 | W17: 0 | X17: 0 | Y17: 0 | Z17: 0 | AA17: 0 | AB17: 0 | AC17: 0 | AD17: 0 | AE17: 0 | AF17: 0 | AG17: 0 | AH17: 0 | AI17: 0 | AJ17: 0
C18: 女 | D18: 8 | E18: 0.14 | F18: 0 | G18: 0 | H18: 0 | I18: 0 | J18: 0 | K18: 0 | L18: 0 | M18: 0 | N18: 0 | O18: 0 | P18: 0 | Q18: 0 | R18: 0 | S18: 0 | T18: 0 | U18: 0 | V18: 0 | W18: 0 | X18: 0 | Y18: 0 | Z18: 0 | AA18: 0 | AB18: 0 | AC18: 0 | AD18: 0 | AE18: 0 | AF18: 0 | AG18: 0 | AH18: 0 | AI18: 0 | AJ18: 0
A21: =IF(LEN(A2)>0,"資料來源 : "&A2," ") -> 資料來源 : 各戒治(看守)所附設勒戒處所依成年受觀察勒戒人之刑案及身分資料查編，統計資料透過獄政管理系統傳送至法務部獄政主機資料庫，由法務部矯正署統計室查核並彙總編製。
A22: =IF(LEN(B2)>0,SUBSTITUTE("填表說明："&B2,CHAR(10),CHAR(10)&" ")," ") -> 填表說明：1.本表各戒治(看守)所附設勒戒處所查編製1式2份，1份送法務部矯正署，1份自存。 2.本表法務部矯正署統計室彙編製1式2份，1份送法務部統計處，1份自存。
